[Event "*** Titled Tuesday Blitz"]
[Site "Chess.com"]
[Date "2020.12.01"]
[Round "1"]
[White "Sanan_Sjugirov"]
[Black "Kotofeyca"]
[Result "0-1"]
[WhiteElo "2883"]
[BlackElo "2452"]
[TimeControl "180+1"]
[EndTime "10:07:46 PST"]
[Termination "Kotofeyca won on time"]

1. e4 {[%clk 0:03:00.9]} 1... c5 {[%clk 0:02:11.4]} 2. Nf3 {[%clk 0:02:58.4]}
2... d6 {[%clk 0:02:10.9]} 3. d4 {[%clk 0:02:57.7]} 3... cxd4 {[%clk 0:02:11.8]}
4. Nxd4 {[%clk 0:02:58.1]} 4... Nf6 {[%clk 0:02:12.7]} 5. Nc3 {[%clk 0:02:58.4]}
5... a6 {[%clk 0:02:13.4]} 6. Be3 {[%clk 0:02:57.8]} 6... Ng4 {[%clk 0:02:12.6]}
7. Bc1 {[%clk 0:02:56.2]} 7... Nc6 {[%clk 0:02:12.5]} 8. Be2 {[%clk 0:02:45.8]}
8... Qb6 {[%clk 0:02:12]} 9. Bxg4 {[%clk 0:02:32.8]} 9... Qxd4 {[%clk
0:02:11.6]} 10. Be3 {[%clk 0:02:16.5]} 10... Qxd1+ {[%clk 0:02:08.2]} 11. Bxd1
{[%clk 0:02:17.4]} 11... e6 {[%clk 0:02:04.2]} 12. Na4 {[%clk 0:02:16.9]} 12...
b5 {[%clk 0:01:58]} 13. Nb6 {[%clk 0:02:16.8]} 13... Rb8 {[%clk 0:01:58.5]} 14.
Nxc8 {[%clk 0:02:16.8]} 14... Rxc8 {[%clk 0:01:59.3]} 15. a4 {[%clk 0:02:08]}
15... b4 {[%clk 0:01:43.5]} 16. Be2 {[%clk 0:02:07.6]} 16... a5 {[%clk
0:01:42.1]} 17. Bb5 {[%clk 0:02:06.5]} 17... Be7 {[%clk 0:01:41.7]} 18. Ke2
{[%clk 0:01:50.7]} 18... Bf6 {[%clk 0:01:38.8]} 19. Rad1 {[%clk 0:01:44.9]}
19... Ke7 {[%clk 0:01:37.4]} 20. b3 {[%clk 0:01:37.1]} 20... Bc3 {[%clk
0:01:20.5]} 21. f4 {[%clk 0:01:35.6]} 21... e5 {[%clk 0:01:18]} 22. Bxc6 {[%clk
0:01:25]} 22... Rxc6 {[%clk 0:01:16.4]} 23. Rd5 {[%clk 0:01:25.2]} 23... Bd4
{[%clk 0:01:07.7]} 24. Bxd4 {[%clk 0:01:21.1]} 24... exd4 {[%clk 0:01:08.3]} 25.
Kd2 {[%clk 0:01:21.4]} 25... Rhc8 {[%clk 0:01:06.5]} 26. Rc1 {[%clk 0:01:21.2]}
26... Rc3 {[%clk 0:00:54.8]} 27. Rxd4 {[%clk 0:01:14.6]} 27... R8c5 {[%clk
0:00:54.8]} 28. Rd3 {[%clk 0:01:08.7]} 28... Ke6 {[%clk 0:00:47.6]} 29. Rxc3
{[%clk 0:01:07.2]} 29... Rxc3 {[%clk 0:00:47.8]} 30. Re1 {[%clk 0:01:05]} 30...
g6 {[%clk 0:00:47.8]} 31. Re3 {[%clk 0:01:03.9]} 31... Rc5 {[%clk 0:00:47.8]}
32. g3 {[%clk 0:00:49.9]} 32... f6 {[%clk 0:00:47.2]} 33. c3 {[%clk 0:00:45.6]}
33... bxc3+ {[%clk 0:00:43.2]} 34. Rxc3 {[%clk 0:00:46.5]} 34... Rh5 {[%clk
0:00:43]} 35. h4 {[%clk 0:00:44.1]} 35... g5 {[%clk 0:00:43]} 36. hxg5 {[%clk
0:00:29.6]} 36... fxg5 {[%clk 0:00:43.9]} 37. Ke3 {[%clk 0:00:17.8]} 37... gxf4+
{[%clk 0:00:42.9]} 38. gxf4 {[%clk 0:00:18.7]} 38... Rh1 {[%clk 0:00:31.3]} 39.
Kd4 {[%clk 0:00:16]} 39... Rd1+ {[%clk 0:00:27.2]} 40. Kc4 {[%clk 0:00:15.9]}
40... h5 {[%clk 0:00:26.3]} 41. Rh3 {[%clk 0:00:14]} 41... Rf1 {[%clk
0:00:25.9]} 42. Rxh5 {[%clk 0:00:10.9]} 42... Rxf4 {[%clk 0:00:25.4]} 43. Kd4
{[%clk 0:00:09.1]} 43... Rf3 {[%clk 0:00:23.9]} 44. Rb5 {[%clk 0:00:08]} 44...
Rh3 {[%clk 0:00:20.5]} 45. Kc4 {[%clk 0:00:07.6]} 45... Re3 {[%clk 0:00:19.5]}
46. Rxa5 {[%clk 0:00:06.9]} 46... Rxe4+ {[%clk 0:00:19.4]} 0-1

[Event "*** Titled Tuesday Blitz"]
[Site "Chess.com"]
[Date "2020.12.01"]
[Round "1"]
[White "nitpicker"]
[Black "elohunter1999"]
[Result "0-1"]
[WhiteElo "2261"]
[BlackElo "2572"]
[TimeControl "180+1"]
[EndTime "10:07:46 PST"]
[Termination "elohunter1999 won on time"]

1. d4 {[%clk 0:03:00.9]} 1... Nf6 {[%clk 0:02:55.2]} 2. c4 {[%clk 0:03:00.6]}
2... e5 {[%clk 0:02:51.7]} 3. dxe5 {[%clk 0:02:59.8]} 3... Ng4 {[%clk 0:02:49]}
4. Bf4 {[%clk 0:02:58.5]} 4... Nc6 {[%clk 0:02:37.9]} 5. Nf3 {[%clk 0:02:56.9]}
5... Bc5 {[%clk 0:02:36.4]} 6. e3 {[%clk 0:02:55.2]} 6... Qe7 {[%clk 0:02:35.7]}
7. Be2 {[%clk 0:02:49.1]} 7... Ngxe5 {[%clk 0:02:35.3]} 8. O-O {[%clk
0:02:46.9]} 8... O-O {[%clk 0:02:33.7]} 9. Nc3 {[%clk 0:02:46.9]} 9... d6 {[%clk
0:02:22.7]} 10. a3 {[%clk 0:02:41.3]} 10... a5 {[%clk 0:02:22.3]} 11. Nd4 {[%clk
0:02:33.3]} 11... Be6 {[%clk 0:01:56]} 12. Nd5 {[%clk 0:02:26.3]} 12... Qd8
{[%clk 0:01:46.5]} 13. Nb5 {[%clk 0:02:23.5]} 13... Bxd5 {[%clk 0:01:43.7]} 14.
cxd5 {[%clk 0:02:15.1]} 14... Ne7 {[%clk 0:01:44.2]} 15. Rc1 {[%clk 0:02:07.8]}
15... Bb6 {[%clk 0:01:40.2]} 16. h3 {[%clk 0:01:57.7]} 16... Qd7 {[%clk
0:01:39.6]} 17. Nc3 {[%clk 0:01:51.4]} 17... N7g6 {[%clk 0:01:32.4]} 18. Bh2
{[%clk 0:01:43.2]} 18... f5 {[%clk 0:01:21.7]} 19. Bb5 {[%clk 0:01:35.8]} 19...
Qf7 {[%clk 0:01:14.6]} 20. Ne2 {[%clk 0:01:35.3]} 20... Nh4 {[%clk 0:01:10.9]}
21. Nf4 {[%clk 0:01:30.2]} 21... Kh8 {[%clk 0:00:56.5]} 22. Bg3 {[%clk
0:01:28.1]} 22... g5 {[%clk 0:00:53.6]} 23. Ne6 {[%clk 0:01:24]} 23... Rg8
{[%clk 0:00:53.4]} 24. Kh1 {[%clk 0:01:04.4]} 24... h6 {[%clk 0:00:48.6]} 25.
Bxh4 {[%clk 0:00:50.5]} 25... gxh4 {[%clk 0:00:48.5]} 26. Nf4 {[%clk 0:00:51]}
26... Rg5 {[%clk 0:00:45.7]} 27. Ne6 {[%clk 0:00:42.5]} 27... Rg6 {[%clk
0:00:40.3]} 28. Nf4 {[%clk 0:00:40.1]} 28... Rg5 {[%clk 0:00:37.5]} 29. Ne6
{[%clk 0:00:39.4]} 29... Rag8 {[%clk 0:00:37.9]} 30. Nxg5 {[%clk 0:00:38.9]}
30... hxg5 {[%clk 0:00:38.8]} 31. f4 {[%clk 0:00:35]} 31... gxf4 {[%clk
0:00:28.5]} 32. Rxf4 {[%clk 0:00:34.4]} 32... Ng6 {[%clk 0:00:27.5]} 33. Rf3
{[%clk 0:00:33.7]} 33... Qf6 {[%clk 0:00:22.5]} 34. Bd3 {[%clk 0:00:31.7]} 34...
Ne7 {[%clk 0:00:20.9]} 35. e4 {[%clk 0:00:29.1]} 35... Qg5 {[%clk 0:00:21]} 36.
Qe2 {[%clk 0:00:25.4]} 36... f4 {[%clk 0:00:20]} 37. Rcf1 {[%clk 0:00:23.8]}
37... Ng6 {[%clk 0:00:20.2]} 38. Qd2 {[%clk 0:00:17.5]} 38... Be3 {[%clk
0:00:20]} 39. Qe2 {[%clk 0:00:14.9]} 39... Ne5 {[%clk 0:00:20.3]} 40. Rxe3
{[%clk 0:00:14.5]} 40... fxe3 {[%clk 0:00:20.4]} 41. Rf5 {[%clk 0:00:14.5]}
41... Qg6 {[%clk 0:00:14.6]} 42. Rh5+ {[%clk 0:00:13.6]} 42... Kg7 {[%clk
0:00:14.6]} 43. Rxh4 {[%clk 0:00:11.2]} 43... Kf7 {[%clk 0:00:13.4]} 44. Rf4+
{[%clk 0:00:09.7]} 44... Ke7 {[%clk 0:00:13.7]} 45. Bc2 {[%clk 0:00:08.6]} 45...
Qg3 {[%clk 0:00:13.2]} 46. Rf3 {[%clk 0:00:07.9]} 46... Nxf3 {[%clk 0:00:13.2]}
47. Qxf3 {[%clk 0:00:07]} 47... Qxf3 {[%clk 0:00:13.4]} 48. gxf3 {[%clk
0:00:06.8]} 48... e2 {[%clk 0:00:14.3]} 0-1

[Event "*** Titled Tuesday Blitz"]
[Site "Chess.com"]
[Date "2020.12.01"]
[Round "1"]
[White "sergivila"]
[Black "esapunov"]
[Result "0-1"]
[WhiteElo "2398"]
[BlackElo "2802"]
[TimeControl "180+1"]
[EndTime "10:07:48 PST"]
[Termination "esapunov won by resignation"]

1. e4 {[%clk 0:02:59.4]} 1... c5 {[%clk 0:02:59.5]} 2. Nc3 {[%clk 0:02:57.7]}
2... d6 {[%clk 0:02:58]} 3. f4 {[%clk 0:02:55.5]} 3... g6 {[%clk 0:02:57.3]} 4.
Nf3 {[%clk 0:02:55.3]} 4... Bg7 {[%clk 0:02:57.7]} 5. Bc4 {[%clk 0:02:55]} 5...
Nc6 {[%clk 0:02:57.8]} 6. O-O {[%clk 0:02:54]} 6... e6 {[%clk 0:02:58.1]} 7. d4
{[%clk 0:02:53.1]} 7... cxd4 {[%clk 0:02:49.6]} 8. Nb5 {[%clk 0:02:52.1]} 8...
Nge7 {[%clk 0:02:43.4]} 9. Bb3 {[%clk 0:02:45.5]} 9... O-O {[%clk 0:02:38.6]}
10. Nbxd4 {[%clk 0:02:42.7]} 10... a6 {[%clk 0:02:27.5]} 11. Be3 {[%clk
0:02:37.5]} 11... b5 {[%clk 0:02:26.5]} 12. c3 {[%clk 0:02:31.3]} 12... Na5
{[%clk 0:02:26.2]} 13. Bf2 {[%clk 0:02:17.1]} 13... e5 {[%clk 0:02:19.4]} 14.
Nc2 {[%clk 0:02:08.6]} 14... Nxb3 {[%clk 0:02:15.2]} 15. axb3 {[%clk 0:02:08]}
15... Bb7 {[%clk 0:02:14.6]} 16. Qe2 {[%clk 0:01:59.9]} 16... exf4 {[%clk
0:02:12.4]} 17. Rad1 {[%clk 0:01:56.7]} 17... Re8 {[%clk 0:02:04.1]} 18. Rfe1
{[%clk 0:01:46.5]} 18... Qc7 {[%clk 0:02:00.9]} 19. Qd2 {[%clk 0:01:42.2]} 19...
Be5 {[%clk 0:01:39.2]} 20. Bh4 {[%clk 0:01:25.4]} 20... Kg7 {[%clk 0:01:31.2]}
21. Ncd4 {[%clk 0:01:12.7]} 21... h6 {[%clk 0:01:21.8]} 22. Bf2 {[%clk
0:01:08.1]} 22... Rad8 {[%clk 0:01:17.8]} 23. Ne2 {[%clk 0:00:57]} 23... g5
{[%clk 0:01:14.2]} 24. Nfd4 {[%clk 0:00:47.2]} 24... Bxe4 {[%clk 0:01:02.1]} 25.
g3 {[%clk 0:00:38.8]} 25... fxg3 {[%clk 0:00:55.8]} 26. Nxg3 {[%clk 0:00:37]}
26... Bg6 {[%clk 0:00:56]} 27. Nf3 {[%clk 0:00:33.1]} 27... Nf5 {[%clk
0:00:49.7]} 28. Nxf5+ {[%clk 0:00:31.9]} 28... Bxf5 {[%clk 0:00:49.6]} 29. Bd4
{[%clk 0:00:31.1]} 29... f6 {[%clk 0:00:49.3]} 30. Rf1 {[%clk 0:00:30]} 30...
Bg6 {[%clk 0:00:47.5]} 31. h4 {[%clk 0:00:28.2]} 31... g4 {[%clk 0:00:46.4]} 32.
Ne1 {[%clk 0:00:26.6]} 32... Bxd4+ {[%clk 0:00:38.9]} 33. Qxd4 {[%clk
0:00:26.2]} 33... Qc5 {[%clk 0:00:39.2]} 34. Ng2 {[%clk 0:00:25]} 34... Qxd4+
{[%clk 0:00:38.1]} 35. Rxd4 {[%clk 0:00:24.4]} 35... Be4 {[%clk 0:00:37.8]} 36.
Nf4 {[%clk 0:00:23.5]} 36... f5 {[%clk 0:00:35.2]} 37. Nd5 {[%clk 0:00:19.6]}
37... Re5 {[%clk 0:00:27.4]} 38. Nf4 {[%clk 0:00:19]} 38... Kf7 {[%clk
0:00:24.4]} 39. Ra1 {[%clk 0:00:19]} 39... Bb7 {[%clk 0:00:20.3]} 40. b4 {[%clk
0:00:18.8]} 40... Re4 {[%clk 0:00:20.6]} 41. Rxe4 {[%clk 0:00:18.7]} 41... Bxe4
{[%clk 0:00:20.9]} 42. Rxa6 {[%clk 0:00:17.9]} 42... d5 {[%clk 0:00:20.6]} 43.
Kf2 {[%clk 0:00:18.1]} 43... d4 {[%clk 0:00:21]} 44. cxd4 {[%clk 0:00:16.2]}
44... Rxd4 {[%clk 0:00:20.6]} 45. Rxh6 {[%clk 0:00:15.9]} 45... Rxb4 {[%clk
0:00:20.8]} 46. Ke3 {[%clk 0:00:15.4]} 46... Rxb2 {[%clk 0:00:20.8]} 47. Kd4
{[%clk 0:00:15.8]} 47... g3 {[%clk 0:00:21]} 48. Ke5 {[%clk 0:00:15.5]} 48... g2
{[%clk 0:00:21.3]} 49. Rg6 {[%clk 0:00:15.6]} 49... Rf2 {[%clk 0:00:20]} 50. Rg5
{[%clk 0:00:15.5]} 50... b4 {[%clk 0:00:19.9]} 51. h5 {[%clk 0:00:14.5]} 51...
b3 {[%clk 0:00:19.5]} 52. h6 {[%clk 0:00:14.9]} 52... b2 {[%clk 0:00:19.8]} 53.
h7 {[%clk 0:00:14.8]} 53... b1=Q {[%clk 0:00:20]} 54. h8=Q {[%clk 0:00:14.9]}
54... Qb2+ {[%clk 0:00:20]} 55. Kd6 {[%clk 0:00:15.1]} 55... Qxh8 {[%clk
0:00:20]} 0-1

[Event "*** Titled Tuesday Blitz"]
[Site "Chess.com"]
[Date "2020.12.01"]
[Round "1"]
[White "ChessQueen"]
[Black "Loy_Konstantin"]
[Result "1/2-1/2"]
[WhiteElo "2730"]
[BlackElo "2386"]
[TimeControl "180+1"]
[EndTime "10:07:51 PST"]
[Termination "Game drawn - insufficient material"]

1. e4 {[%clk 0:03:00.4]} 1... c5 {[%clk 0:02:58.3]} 2. c3 {[%clk 0:03:00.2]}
2... Nf6 {[%clk 0:02:56.9]} 3. e5 {[%clk 0:03:00.1]} 3... Nd5 {[%clk 0:02:57.1]}
4. d4 {[%clk 0:03:00.5]} 4... cxd4 {[%clk 0:02:58]} 5. Nf3 {[%clk 0:03:00.9]}
5... d6 {[%clk 0:02:57.5]} 6. cxd4 {[%clk 0:02:48.8]} 6... Nc6 {[%clk
0:02:57.2]} 7. Bc4 {[%clk 0:02:46.8]} 7... e6 {[%clk 0:02:57.3]} 8. O-O {[%clk
0:02:46.1]} 8... Be7 {[%clk 0:02:56.8]} 9. Qe2 {[%clk 0:02:46.7]} 9... O-O
{[%clk 0:02:56.3]} 10. Rd1 {[%clk 0:02:46.9]} 10... Qc7 {[%clk 0:02:39]} 11. Bd2
{[%clk 0:02:33.8]} 11... Rd8 {[%clk 0:02:27.5]} 12. Nc3 {[%clk 0:02:30.2]} 12...
Nxc3 {[%clk 0:02:26.8]} 13. Bxc3 {[%clk 0:02:30.3]} 13... Bd7 {[%clk 0:01:58.5]}
14. Rac1 {[%clk 0:02:28.5]} 14... dxe5 {[%clk 0:01:51.6]} 15. dxe5 {[%clk
0:02:27]} 15... Be8 {[%clk 0:01:51]} 16. Bd3 {[%clk 0:02:19.5]} 16... Rd5 {[%clk
0:01:17.4]} 17. Be4 {[%clk 0:02:17.8]} 17... Rxd1+ {[%clk 0:01:15.9]} 18. Rxd1
{[%clk 0:02:15.4]} 18... Rd8 {[%clk 0:01:16]} 19. h4 {[%clk 0:02:13]} 19...
Rxd1+ {[%clk 0:01:13.5]} 20. Qxd1 {[%clk 0:02:13.2]} 20... Qd8 {[%clk
0:01:11.7]} 21. Qc2 {[%clk 0:02:11.4]} 21... h6 {[%clk 0:01:04.2]} 22. g3 {[%clk
0:02:10.6]} 22... Qb6 {[%clk 0:00:41.5]} 23. Kg2 {[%clk 0:02:05.8]} 23... Bb4
{[%clk 0:00:35]} 24. a3 {[%clk 0:02:01.9]} 24... Bxc3 {[%clk 0:00:34.9]} 25.
Qxc3 {[%clk 0:02:02.8]} 25... Qa5 {[%clk 0:00:23.5]} 26. b4 {[%clk 0:02:00.6]}
26... Qb6 {[%clk 0:00:21.8]} 27. Bc2 {[%clk 0:01:54.9]} 27... g6 {[%clk
0:00:18.9]} 28. h5 {[%clk 0:01:54.4]} 28... Kg7 {[%clk 0:00:18]} 29. hxg6 {[%clk
0:01:54.2]} 29... fxg6 {[%clk 0:00:18.9]} 30. Qd3 {[%clk 0:01:52.6]} 30... Qd8
{[%clk 0:00:17.7]} 31. Qe3 {[%clk 0:01:44.3]} 31... Qd5 {[%clk 0:00:17.5]} 32.
Be4 {[%clk 0:01:44.3]} 32... Qd7 {[%clk 0:00:13.9]} 33. b5 {[%clk 0:01:43.9]}
33... Ne7 {[%clk 0:00:13]} 34. a4 {[%clk 0:01:44.5]} 34... b6 {[%clk 0:00:13.1]}
35. Qd4 {[%clk 0:01:38]} 35... Qxd4 {[%clk 0:00:11.4]} 36. Nxd4 {[%clk
0:01:38.1]} 36... Kf7 {[%clk 0:00:10]} 37. f4 {[%clk 0:01:36.5]} 37... Nf5
{[%clk 0:00:09.6]} 38. Nc6 {[%clk 0:01:23.3]} 38... Bxc6 {[%clk 0:00:07.6]} 39.
bxc6 {[%clk 0:01:23.8]} 39... Ke8 {[%clk 0:00:07]} 40. g4 {[%clk 0:01:22.8]}
40... Ne7 {[%clk 0:00:07.1]} 41. Kf3 {[%clk 0:01:15.3]} 41... Kd8 {[%clk
0:00:07.5]} 42. Ke3 {[%clk 0:01:15.7]} 42... Kc7 {[%clk 0:00:07.8]} 43. Kd3
{[%clk 0:01:15.7]} 43... h5 {[%clk 0:00:06.3]} 44. gxh5 {[%clk 0:01:14.9]} 44...
gxh5 {[%clk 0:00:07.2]} 45. Ke3 {[%clk 0:01:07.5]} 45... Nxc6 {[%clk 0:00:05.6]}
46. Bg6 {[%clk 0:01:03.9]} 46... h4 {[%clk 0:00:05.6]} 47. Kf3 {[%clk
0:01:04.5]} 47... a6 {[%clk 0:00:05.1]} 48. Kg4 {[%clk 0:01:04.7]} 48... b5
{[%clk 0:00:04.7]} 49. axb5 {[%clk 0:01:04.6]} 49... axb5 {[%clk 0:00:05.6]} 50.
Kxh4 {[%clk 0:01:05.2]} 50... b4 {[%clk 0:00:06]} 51. Kg5 {[%clk 0:01:05.8]}
51... Kd7 {[%clk 0:00:06.2]} 52. Kf6 {[%clk 0:01:05.3]} 52... Nd4 {[%clk
0:00:06.3]} 53. Kf7 {[%clk 0:00:45.6]} 53... b3 {[%clk 0:00:06.5]} 54. f5 {[%clk
0:00:42.1]} 54... exf5 {[%clk 0:00:06.4]} 55. e6+ {[%clk 0:00:41.2]} 55... Nxe6
{[%clk 0:00:04.8]} 56. Bxf5 {[%clk 0:00:41.6]} 56... b2 {[%clk 0:00:04.8]} 57.
Bxe6+ {[%clk 0:00:42]} 57... Kd6 {[%clk 0:00:05.7]} 58. Bf5 {[%clk 0:00:42.2]}
58... Ke5 {[%clk 0:00:06.1]} 59. Bg6 {[%clk 0:00:41.8]} 59... Kd4 {[%clk
0:00:06.4]} 60. Bh7 {[%clk 0:00:40.1]} 60... Kc3 {[%clk 0:00:07.3]} 61. Bg6
{[%clk 0:00:40.4]} 61... Kd2 {[%clk 0:00:08.2]} 62. Bh7 {[%clk 0:00:40.7]} 62...
Kc1 {[%clk 0:00:09.1]} 63. Bg6 {[%clk 0:00:41]} 63... b1=Q {[%clk 0:00:10]} 64.
Bxb1 {[%clk 0:00:41]} 1/2-1/2

[Event "*** Titled Tuesday Blitz"]
[Site "Chess.com"]
[Date "2020.12.01"]
[Round "1"]
[White "Bodnar_Mykola"]
[Black "Kostya_Nikologorskiy"]
[Result "1/2-1/2"]
[WhiteElo "2378"]
[BlackElo "2701"]
[TimeControl "180+1"]
[EndTime "10:07:51 PST"]
[Termination "Game drawn - insufficient material"]

1. e4 {[%clk 0:03:00.9]} 1... e6 {[%clk 0:02:59.9]} 2. d4 {[%clk 0:03:00.2]}
2... d5 {[%clk 0:03:00]} 3. Nc3 {[%clk 0:03:00.9]} 3... Bb4 {[%clk 0:02:59.4]}
4. e5 {[%clk 0:03:00.5]} 4... c5 {[%clk 0:02:59.7]} 5. a3 {[%clk 0:03:00.4]}
5... Bxc3+ {[%clk 0:02:59.9]} 6. bxc3 {[%clk 0:03:01.2]} 6... Ne7 {[%clk
0:03:00.5]} 7. Qg4 {[%clk 0:03:00.7]} 7... Qc7 {[%clk 0:02:59.8]} 8. Qxg7 {[%clk
0:03:00.6]} 8... Rg8 {[%clk 0:03:00.1]} 9. Qxh7 {[%clk 0:03:01]} 9... cxd4
{[%clk 0:03:00.8]} 10. Ne2 {[%clk 0:03:01.5]} 10... Nbc6 {[%clk 0:02:57.3]} 11.
f4 {[%clk 0:03:01.4]} 11... Bd7 {[%clk 0:02:54.4]} 12. Qd3 {[%clk 0:03:00.1]}
12... dxc3 {[%clk 0:02:54.7]} 13. h4 {[%clk 0:02:57]} 13... Nf5 {[%clk
0:02:49.5]} 14. h5 {[%clk 0:02:55.7]} 14... O-O-O {[%clk 0:02:41.4]} 15. h6
{[%clk 0:02:55.8]} 15... Rg6 {[%clk 0:02:40]} 16. h7 {[%clk 0:02:56]} 16... Rh8
{[%clk 0:02:40.1]} 17. Qxc3 {[%clk 0:02:51.3]} 17... Rg7 {[%clk 0:02:23.8]} 18.
Qd3 {[%clk 0:02:51]} 18... d4 {[%clk 0:02:15.9]} 19. Bd2 {[%clk 0:02:40.8]}
19... a6 {[%clk 0:02:10.5]} 20. Rb1 {[%clk 0:02:39.3]} 20... Nce7 {[%clk
0:01:43]} 21. c3 {[%clk 0:02:22.7]} 21... Bb5 {[%clk 0:01:36.2]} 22. Rxb5 {[%clk
0:02:10.6]} 22... axb5 {[%clk 0:01:37.1]} 23. cxd4 {[%clk 0:02:09.8]} 23... Nd5
{[%clk 0:01:28.8]} 24. Kf2 {[%clk 0:01:29.7]} 24... Qc4 {[%clk 0:01:19.3]} 25.
Nc1 {[%clk 0:01:19.1]} 25... Qxd3 {[%clk 0:01:13.9]} 26. Bxd3 {[%clk 0:01:20]}
26... Rgxh7 {[%clk 0:01:14.5]} 27. Rd1 {[%clk 0:01:11.5]} 27... Rh2 {[%clk
0:01:12.1]} 28. Ne2 {[%clk 0:01:11.9]} 28... Rg8 {[%clk 0:01:10.1]} 29. Be4
{[%clk 0:01:11.9]} 29... Kd7 {[%clk 0:00:57.8]} 30. Rb1 {[%clk 0:01:06.7]} 30...
Nh4 {[%clk 0:00:51.1]} 31. Ng3 {[%clk 0:01:04.9]} 31... Ng6 {[%clk 0:00:43.8]}
32. Kf3 {[%clk 0:01:02.5]} 32... Nc7 {[%clk 0:00:40.1]} 33. Bxb7 {[%clk
0:00:59.8]} 33... Rb8 {[%clk 0:00:38.3]} 34. Be4 {[%clk 0:00:59.1]} 34... Ne7
{[%clk 0:00:38.4]} 35. Bb4 {[%clk 0:00:56.5]} 35... Ned5 {[%clk 0:00:38.1]} 36.
Bd6 {[%clk 0:00:52.5]} 36... Ra8 {[%clk 0:00:38.5]} 37. Bxd5 {[%clk 0:00:45.4]}
37... Nxd5 {[%clk 0:00:38.4]} 38. Rxb5 {[%clk 0:00:45]} 38... Kc6 {[%clk
0:00:37.7]} 39. Rc5+ {[%clk 0:00:44.3]} 39... Kb6 {[%clk 0:00:38.1]} 40. Rc2
{[%clk 0:00:43.9]} 40... Rhh8 {[%clk 0:00:37.8]} 41. Ne4 {[%clk 0:00:43.3]}
41... Rhc8 {[%clk 0:00:37.8]} 42. Rb2+ {[%clk 0:00:41.4]} 42... Kc6 {[%clk
0:00:37.5]} 43. g4 {[%clk 0:00:39.4]} 43... Ra4 {[%clk 0:00:37.4]} 44. Rc2+
{[%clk 0:00:36.3]} 44... Kb7 {[%clk 0:00:33.7]} 45. Nc5+ {[%clk 0:00:36.2]}
45... Ka8 {[%clk 0:00:33.1]} 46. Nxa4 {[%clk 0:00:18.2]} 46... Rxc2 {[%clk
0:00:34]} 47. f5 {[%clk 0:00:19.1]} 47... Rc4 {[%clk 0:00:31.6]} 48. Nc5 {[%clk
0:00:16.9]} 48... exf5 {[%clk 0:00:29.8]} 49. gxf5 {[%clk 0:00:17.7]} 49... Rxd4
{[%clk 0:00:29.9]} 50. e6 {[%clk 0:00:17.7]} 50... fxe6 {[%clk 0:00:29.6]} 51.
fxe6 {[%clk 0:00:18.6]} 51... Rc4 {[%clk 0:00:26]} 52. e7 {[%clk 0:00:17.9]}
52... Nxe7 {[%clk 0:00:26.1]} 53. Bxe7 {[%clk 0:00:18.8]} 53... Rc3+ {[%clk
0:00:27]} 54. Ke4 {[%clk 0:00:18.9]} 54... Rxa3 {[%clk 0:00:27.6]} 55. Kd5
{[%clk 0:00:19.5]} 55... Ra7 {[%clk 0:00:26.6]} 56. Bd6 {[%clk 0:00:20]} 56...
Rh7 {[%clk 0:00:27.3]} 57. Kc6 {[%clk 0:00:20.5]} 57... Rh1 {[%clk 0:00:26.3]}
58. Nd7 {[%clk 0:00:21]} 58... Rc1+ {[%clk 0:00:27.2]} 59. Bc5 {[%clk
0:00:21.4]} 59... Rc2 {[%clk 0:00:25.8]} 60. Kc7 {[%clk 0:00:20.8]} 60... Rxc5+
{[%clk 0:00:22.4]} 61. Nxc5 {[%clk 0:00:21.1]} 1/2-1/2